{"text_format":"1","workbook":"xlsx","n_sheets":3,"sheets":["Data","FORM","INDEX"],"not_rendered":{"charts":0,"images":0,"macros":1,"external_links":0,"defined_names":1,"comments":0,"pivot_tables":0},"unopened":[],"bounds":{"document_bytes":16777216,"sheet_cells":100000,"rows_first":2000,"rows_last":500,"rows_between":2000,"halvings":0,"cell_chars":16384,"cell_head_chars":4096},"cells_cut":0,"cells_raw":0,"read":"whole","date_system":"1900"}

{"sheet":"Data","index":0,"n_rows":8,"n_cols":4,"rows_kept":8,"cut":false,"hidden":true,"merged":[]}
["Tick","Semester","Year","Skills"]
["√",1,1,"Problem Solving and Scientific Skills; "]
[null,2,2,"Communication Skills,"]
[null,3,3,"Social Skills, Team Skills and Responsibilities; "]
[null,null,4,"Values, Attitudes and Professionalism; "]
[null,null,5,"Information Management and Lifelong Learning Skills; "]
[null,null,6,"Managerial and Entrepreneurial Skills. "]
[null,null,null,"Leadership"]

{"sheet":"FORM","index":1,"n_rows":86,"n_cols":17,"rows_kept":86,"cut":false,"hidden":false,"merged":[[41,2,41,8],[33,2,35,8],[33,9,35,9],[33,10,33,15],[33,16,35,16],[34,10,34,13],[34,15,35,15],[36,2,36,8],[37,2,37,8],[38,2,38,8],[39,2,39,8],[40,2,40,8],[56,2,56,8],[58,2,59,8],[58,9,59,9],[58,10,59,12],[58,13,59,15],[42,2,42,8],[43,2,43,8],[53,2,53,8],[54,2,54,8],[55,2,55,8],[47,2,47,8],[48,2,48,8],[49,2,49,8],[50,2,50,8],[51,2,51,8],[52,2,52,8],[44,2,44,8],[45,2,45,8],[46,2,46,8],[61,3,61,8],[61,10,61,12],[61,13,61,15],[65,3,65,8],[65,10,65,12],[65,13,65,15],[60,3,60,8],[60,10,60,12],[60,13,60,15],[62,10,62,12],[63,10,63,12],[62,13,62,15],[63,13,63,15],[62,3,62,8],[63,3,63,8],[85,2,85,7],[85,8,85,16],[81,2,81,3],[79,2,79,10],[80,2,80,8],[78,14,78,15],[77,2,78,9],[66,3,66,8],[66,10,66,12],[66,13,66,15],[69,2,70,8],[69,9,70,9],[69,10,70,12],[69,13,70,15],[67,9,67,15],[71,10,71,12],[71,13,71,15],[72,3,72,8],[74,3,74,8],[81,4,81,16],[3,1,4,1],[12,1,16,1],[17,1,27,1],[28,1,30,1],[4,3,4,16],[10,3,10,16],[12,2,12,16],[30,9,30,16],[26,2,26,16],[27,2,27,16],[28,9,28,16],[29,9,29,16],[19,2,20,2],[19,3,19,14],[19,15,20,15],[19,16,20,16],[3,3,3,16],[8,3,8,16],[11,3,11,16],[13,3,13,16],[14,3,14,16],[16,3,16,16],[9,3,9,6],[15,3,15,16],[82,1,84,1],[9,10,9,16],[76,9,76,15],[5,1,7,1],[5,2,7,2],[5,3,7,16],[28,2,30,7],[17,2,18,16],[31,2,32,16],[31,1,80,1],[34,14,35,14],[56,9,56,15],[69,16,70,16],[82,2,84,7],[82,8,84,16],[75,3,75,8],[75,10,75,12],[75,13,75,15],[71,3,71,8],[72,13,72,15],[74,13,74,15],[72,10,72,12],[74,10,74,12],[58,16,59,16]]}
[]
[]
[]
[null,"1.         ","Name of Course :"]
[null,null,"Course Code :"]
[null,"2.        ","Synopsis :"]
[]
[]
[null,"3.        ","Name(s) of academic staff : "]
[null,"4.        ","Semester and Year offered :","Semester",null,null,null,null,"Year"]
[null,"5.        ","Credit Value :",{"$f":"ROUNDDOWN(Q80,0)","v":0}]
[null,"6.        ","Prerequisite/co-requisite:     (if any) "]
[null,"7.        ","Course Learning Outcomes (CLO) :  At the end of the course the students will be able to: \n(example)  -  explain the basic principles of immunisation (C2,PLO1)"]
[null,null,"CLO1"]
[null,null,"CLO2"]
[null,null,"CLO3"]
[]
[null,"8.        ","Mapping of the Course Learning Outcomes to the Programme Learning Outcomes, Teaching Methods and Assessment :"]
[]
[null,null,"Course Learning Outcomes (CLO)","Programme Learning Outcomes (PLO)",null,null,null,null,null,null,null,null,null,null,null,"Teaching Methods","Assessment"]
[null,null,null,"PLO1","PLO2","PLO3","PLO4","PLO5","PLO6","PLO7","PLO8","PLO9","PLO10","PLO11","PLO12"]
[null,null,"CLO 1"]
[null,null,"CLO 2"]
[null,null,"CLO 3"]
[]
[]
[null,null,"Indicate the relevancy between the CLO and PLO by ticking “/“ the appropriate relevant box."]
[null,null,"(This description must be read together  with Standards 2.1.2 , 2.2.1 and 2.2.2 in  Area 2 - pages 16 & 18) "]
[null,"9.        ","Transferable Skills (if applicable)\n(Skills learned in the course of study which can be useful and utilized in other settings)",null,null,null,null,null,1]
[null,null,null,null,null,null,null,null,2]
[null,null,null,null,null,null,null,null,3]
[null,"10.     ","Distribution of Student Learning Time (SLT)"]
[]
[null,null,"Course Content Outline",null,null,null,null,null,null,"CLO*","Teaching and Learning Activities",null,null,null,null,null,"SLT"]
[null,null,null,null,null,null,null,null,null,null,"Guided Learning (F2F)",null,null,null,"Guided Learning (NF2F)\neg: \ne-Learning","Independent Learning (NF2F)"]
[null,null,null,null,null,null,null,null,null,null,"L","T","P","O"]
[null,null,null,null,null,null,null,null,null,null,null,null,null,null,null,null,{"$f":"SUM(K37:P37)","v":0}]
[null,null,null,null,null,null,null,null,null,null,null,null,null,null,null,null,{"$f":"SUM(K38:P38)","v":0}]
[null,null,null,null,null,null,null,null,null,null,null,null,null,null,null,null,0]
[null,null,null,null,null,null,null,null,null,null,null,null,null,null,null,null,0]
[null,null,null,null,null,null,null,null,null,null,null,null,null,null,null,null,0]
[null,null,null,null,null,null,null,null,null,null,null,null,null,null,null,null,0]
[null,null,null,null,null,null,null,null,null,null,null,null,null,null,null,null,0]
[null,null,null,null,null,null,null,null,null,null,null,null,null,null,null,null,{"$f":"SUM(K44:P44)","v":0}]
[null,null,null,null,null,null,null,null,null,null,null,null,null,null,null,null,{"$f":"SUM(K45:P45)","v":0}]
[null,null,null,null,null,null,null,null,null,null,null,null,null,null,null,null,0]
[null,null,null,null,null,null,null,null,null,null,null,null,null,null,null,null,0]
[null,null,null,null,null,null,null,null,null,null,null,null,null,null,null,null,{"$f":"SUM(K48:P48)","v":0}]
[null,null,null,null,null,null,null,null,null,null,null,null,null,null,null,null,0]
[null,null,null,null,null,null,null,null,null,null,null,null,null,null,null,null,0]
[null,null,null,null,null,null,null,null,null,null,null,null,null,null,null,null,0]
[null,null,null,null,null,null,null,null,null,null,null,null,null,null,null,null,0]
[null,null,null,null,null,null,null,null,null,null,null,null,null,null,null,null,0]
[null,null,null,null,null,null,null,null,null,null,null,null,null,null,null,null,0]
[null,null,null,null,null,null,null,null,null,null,null,null,null,null,null,null,0]
[null,null,null,null,null,null,null,null,null,null,null,null,null,null,null,null,0]
[null,null,null,null,null,null,null,null,null,"Total",null,null,null,null,null,null,{"$f":"SUM(Q37:Q56)","v":0}]
[]
[null,null,"Continuous Assessment",null,null,null,null,null,null,"Percentage (%) ","F2F",null,null,"NF2F",null,null,"SLT"]
[]
[null,null,1,null,null,null,null,null,null,null,null,null,null,null,null,null,{"$f":"SUM(K61:P61)","v":0}]
[null,null,2,null,null,null,null,null,null,null,null,null,null,null,null,null,0]
[null,null,3,null,null,null,null,null,null,null,null,null,null,null,null,null,0]
[null,null,4,null,null,null,null,null,null,null,null,null,null,null,null,null,0]
[null,null,5,null,null,null,null,null,null,null,null,null,null,null,null,null,0]
[null,null,6,null,null,null,null,null,null,null,null,null,null,null,null,null,0]
[null,null,7,null,null,null,null,null,null,null,null,null,null,null,null,null,0]
[null,null,null,null,null,null,null,null,null,"Total",null,null,null,null,null,null,{"$f":"SUM(Q61:Q67)","v":0}]
[]
[null,null,"Final  Assessment",null,null,null,null,null,null,"Percentage (%) ","F2F",null,null,"NF2F",null,null,"SLT"]
[]
[null,null,1,null,null,null,null,null,null,null,null,null,null,null,null,null,{"$f":"SUM(K72:P72)","v":0}]
[null,null,2,null,null,null,null,null,null,null,null,null,null,null,null,null,{"$f":"SUM(K73:P73)","v":0}]
[null,null,3,null,null,null,null,null,null,null,null,null,null,null,null,null,0]
[null,null,4,null,null,null,null,null,null,null,null,null,null,null,null,null,0]
[null,null,5,null,null,null,null,null,null,null,null,null,null,null,null,null,0]
[null,null,null,null,null,null,null,null,null,"Total",null,null,null,null,null,null,{"$f":"SUM(Q72:Q76)","v":0}]
[null,null,"**Please tick (√) if this course is Latihan Industri/ Clinical Placement/ Practicum/ WBL using 2-weeks, 1 credit formula"]
[null,null,null,null,null,null,null,null,null,null,null,null,null,null,"GRAND TOTAL SLT",null,{"$f":"SUM(Q57,Q68,Q77)","v":0}]
[null,null,"L = Lecture, T = Tutorial, P= Practical, O= Others, F2F=Face to Face, NF2F=Non Face to Face",null,null,null,null,null,null,null,null,null,null,null,null,null,{"$f":"IF(N79=\"√\",(Q79/80),(Q79/40))","v":0}]
[null,null,"*Indicate the CLO based on the CLO’s numbering in Item 8."]
[null,11,"Identify special requirement to deliver the course (e.g: software, nursery, computer lab, simulation room, etc)"]
[null,12,"References (include required and further readings, and should be the most current)"]
[]
[]
[null,13,"Other additional information :"]

{"sheet":"INDEX","index":2,"n_rows":4,"n_cols":3,"rows_kept":4,"cut":false,"hidden":false,"merged":[]}
["COURSE INDEX"]
[]
[null,"FORM"]
[null,"INDEX","Comments by Panel of Assessors"]